lending/lending_fUSD_20260110
["ID","MTS","AMOUNT","RATE_DAILY","PERIOD"]
[401207526,1768044643081,-460.0,0.00016602,2]
[401207527,1768044643096,-150.0,0.00016615,2]
[401207528,1768044643112,-252.68743637,0.00016618,2]
[401207529,1768044643127,-260.75602621,0.00016618,2]
[401207530,1768044643139,-226.31905987,0.00016618,2]
[401207531,1768044643153,-213.87423394,0.00016618,2]
[401207532,1768044643167,-177.21892515,0.00016618,2]
[401207533,1768044643181,-150.0,0.00016619,2]
[401207534,1768044643195,-150.0,0.0001662,2]
[401207535,1768044643209,-150.0,0.00016624,2]
[401207536,1768044643224,-516.91845939,0.00016624,2]
[401207537,1768044643238,-252.68743637,0.00016636,2]
[401207538,1768044643252,-260.75602621,0.00016636,2]
[401207539,1768044643266,-226.31905987,0.00016636,2]
[401207540,1768044643281,-213.87423394,0.00016636,2]
[401207541,1768044643294,-177.21892515,0.00016636,2]
[401207542,1768044643309,-150.0,0.0001665,2]
[401207543,1768044643328,-150.0,0.0001665,2]
[401207544,1768044643343,-150.0,0.0001665,2]
[401207545,1768044643358,-150.0,0.0001665,2]
[401207546,1768044643370,-252.68743637,0.00016655,2]
[401207547,1768044643382,-260.75602621,0.00016655,2]
[401207548,1768044643393,-226.31905987,0.00016655,2]
[401207549,1768044643409,-213.87423394,0.00016655,2]
[401207550,1768044643422,-177.21892515,0.00016655,2]
[401207551,1768044643433,-460.0,0.00016657,2]
[401207552,1768044643443,-150.0,0.00016659,2]
[401207553,1768044643456,-150.0,0.0001666,2]
[401207554,1768044643473,-252.68743637,0.00016673,2]
[401207555,1768044643486,-260.75602621,0.00016673,2]
[401207556,1768044643496,-226.31905987,0.00016673,2]
[401207557,1768044643510,-213.87423394,0.00016673,2]
[401207558,1768044643523,-177.21892515,0.00016673,2]
[401207559,1768044643535,-150.0,0.0001668,2]
[401207560,1768044643546,-150.0,0.0001668,2]
[401207561,1768044643560,-150.0,0.00016685,2]
[401207562,1768044643577,-252.68743637,0.00016691,2]
[401207563,1768044643591,-260.75602621,0.00016691,2]
[401207564,1768044643605,-226.31905987,0.00016691,2]
[401207565,1768044643618,-213.87423394,0.00016691,2]
[401207566,1768044643631,-177.21892515,0.00016691,2]
[401207567,1768044643646,-150.0,0.00016694,2]
[401207568,1768044643674,-14734.29972323,0.00016699,2]
[401207569,1768044643689,-150.0,0.00016702,2]
[401207570,1768044643703,-252.68743637,0.00016709,2]
[401207571,1768044643716,-260.75602621,0.00016709,2]
[401207572,1768044643730,-226.31905987,0.00016709,2]
[401207573,1768044643744,-213.87423394,0.00016709,2]
[401207574,1768044643759,-177.21892515,0.00016709,2]
[401207575,1768044643772,-150.0,0.0001671,2]
[401207576,1768044643786,-460.0,0.00016711,2]
[401207577,1768044643799,-160.0,0.00016712,2]
[401207578,1768044643812,-834.0,0.0001672,2]
[401207579,1768044643824,-850.0,0.0001672,2]
[401207580,1768044643836,-252.68743637,0.00016727,2]
[401207581,1768044643848,-260.75602621,0.00016727,2]
[401207582,1768044643862,-226.31905987,0.00016727,2]
[401207583,1768044643875,-213.87423394,0.00016727,2]
[401207584,1768044643889,-177.21892515,0.00016727,2]
[401207585,1768044643901,-150.0,0.00016729,2]
[401207586,1768044643916,-331.0,0.00016736,2]
[401207587,1768044643929,-153.0,0.00016736,2]
[401207588,1768044643941,-1680.0,0.00016737,2]
[401207589,1768044643954,-150.0,0.0001674,2]
[401207590,1768044643966,-2006.10136267,0.00016744,2]
[401207591,1768044643980,-150.0,0.00016744,2]
[401207592,1768044643992,-252.68743637,0.00016745,2]
[401207593,1768044644005,-260.75602621,0.00016745,2]
[401207594,1768044644017,-226.31905987,0.00016745,2]
[401207595,1768044644030,-213.87423394,0.00016745,2]
[401207596,1768044644047,-177.21892515,0.00016745,2]
[401207597,1768044644062,-150.0,0.00016754,2]
[401207598,1768044644078,-252.68743637,0.00016764,2]
[401207599,1768044644093,-260.75602621,0.00016764,2]
[401207600,1768044644108,-226.31905987,0.00016764,2]
[401207601,1768044644124,-213.87423394,0.00016764,2]
[401207602,1768044644138,-177.21892515,0.00016764,2]
[401207603,1768044644152,-150.0,0.00016765,2]
[401207604,1768044644166,-460.0,0.00016766,2]
[401207605,1768044644180,-150.0,0.0001677,2]
[401207606,1768044644194,-252.68743637,0.00016782,2]
[401207607,1768044644208,-260.75602621,0.00016782,2]
[401207608,1768044644221,-226.31905987,0.00016782,2]
[401207609,1768044644236,-213.87423394,0.00016782,2]
[401207610,1768044644250,-177.21892515,0.00016782,2]
[401207611,1768044644263,-150.0,0.00016786,2]
[401207612,1768044644277,-1859.52,0.00016793,2]
[401207613,1768044644290,-252.68743637,0.000168,2]
[401207614,1768044644303,-260.75602621,0.000168,2]
[401207615,1768044644316,-226.31905987,0.000168,2]
[401207616,1768044644329,-213.87423394,0.000168,2]
[401207617,1768044644342,-150.0,0.000168,2]
[401207618,1768044644354,-150.0,0.000168,2]
[401207619,1768044644367,-150.0,0.000168,2]
[401207620,1768044644380,-177.21892515,0.000168,2]
[401207621,1768044644393,-1044.06079556,0.00016818,2]
[401207622,1768044644405,-252.68743637,0.00016818,2]
[401207623,1768044644417,-260.75602621,0.00016818,2]
[401207624,1768044644430,-226.31905987,0.00016818,2]
[401207625,1768044644443,-213.87423394,0.00016818,2]
[401207626,1768044644456,-177.21892515,0.00016818,2]
[401207627,1768044644468,-1680.0,0.0001682,2]
[401207628,1768044644481,-166.66,0.0001682,2]
[401207629,1768044644494,-460.0,0.00016821,2]
[401207630,1768044644509,-150.0,0.00016823,2]
[401207631,1768044644522,-195.0,0.00016826,2]
[401207632,1768044644535,-289.92966969,0.00016826,2]
[401207633,1768044644548,-250.0,0.00016827,2]
[401207634,1768044644567,-600.0,0.00016827,2]
[401207635,1768044644582,-193.0,0.00016827,2]
[401207636,1768044644595,-250.0,0.00016827,2]
[401207637,1768044644610,-300.0,0.00016827,2]
[401207638,1768044644625,-250.0,0.00016828,2]
[401207639,1768044644639,-150.0,0.00016828,2]
[401207640,1768044644652,-150.0,0.0001683,2]
[401207641,1768044644665,-150.0,0.00016835,2]
[401207642,1768044644680,-252.68743637,0.00016836,2]
[401207643,1768044644693,-260.75602621,0.00016836,2]
[401207644,1768044644708,-226.31905987,0.00016836,2]
[401207645,1768044644721,-213.87423394,0.00016836,2]
[401207646,1768044644735,-177.21892515,0.00016836,2]
[401207647,1768044644749,-252.68743637,0.00016855,2]
[401207648,1768044644763,-260.75602621,0.00016855,2]
[401207649,1768044644777,-226.31905987,0.00016855,2]
[401207650,1768044644790,-213.87423394,0.00016855,2]
[401207651,1768044644803,-177.21892515,0.00016855,2]
[401207652,1768044644817,-150.0,0.0001686,2]
[401207653,1768044644829,-1667.60757895,0.00016863,2]
[401207654,1768044644842,-322.6107,0.00016863,2]
[401207655,1768044644855,-151.0,0.00016863,2]
[401207656,1768044644868,-151.0,0.00016863,2]
[401207657,1768044644881,-998.0,0.00016863,2]
[401207658,1768044644893,-2000.0,0.00016863,2]
[401207659,1768044644906,-2000.0,0.00016863,2]
[401207660,1768044644919,-151.0,0.00016863,2]
[401207661,1768044644931,-2000.0,0.00016863,2]
[401207662,1768044644944,-2000.0,0.00016863,2]
[401207663,1768044644957,-2000.0,0.00016863,2]
[401207664,1768044644970,-2000.0,0.00016863,2]
[401207665,1768044644983,-1000.0,0.00016863,2]
[401207666,1768044644996,-2000.0,0.00016863,2]
[401207667,1768044645008,-1000.0,0.00016863,2]
[401207668,1768044645021,-2000.0,0.00016863,2]
[401207669,1768044645033,-1000.0,0.00016863,2]
[401207670,1768044645045,-2000.0,0.00016863,2]
[401207671,1768044645057,-1000.0,0.00016863,2]
[401207672,1768044645075,-2000.0,0.00016863,2]
[401207673,1768044645089,-151.0,0.00016863,2]
[401207674,1768044645103,-1000.0,0.00016863,2]
[401207675,1768044645116,-2000.0,0.00016863,2]
[401207676,1768044645129,-156.587,0.00016863,2]
[401207677,1768044645143,-1000.0,0.00016863,2]
[401207678,1768044645156,-2000.0,0.00016863,2]
[401207679,1768044645169,-162.380719,0.00016863,2]
[401207680,1768044645183,-1000.0,0.00016863,2]
[401207681,1768044645196,-2000.0,0.00016863,2]
[401207682,1768044645208,-155.41089514,0.00016863,2]
[401207683,1768044645221,-578.20924308,0.00016863,2]
[401207684,1768044645234,-1000.0,0.00016863,2]
[401207685,1768044645246,-2000.0,0.00016863,2]
[401207686,1768044645259,-8260.13072239,0.00016863,2]
[401207687,1768044645272,-250.0,0.00016863,2]
[401207688,1768044645286,-1000.0,0.00016863,2]
[401207689,1768044645299,-2000.0,0.00016863,2]
[401207690,1768044645312,-250.0,0.00016863,2]
[401207691,1768044645324,-1000.0,0.00016863,2]
[401207692,1768044645338,-250.0,0.00016863,2]
[401207693,1768044645351,-1000.0,0.00016863,2]
[401207694,1768044645364,-250.0,0.00016863,2]
[401207695,1768044645378,-1000.0,0.00016863,2]
[401207696,1768044645391,-250.0,0.00016863,2]
[401207697,1768044645403,-1000.0,0.00016863,2]
[401207698,1768044645420,-250.0,0.00016863,2]
[401207699,1768044645433,-1000.0,0.00016863,2]
[401207700,1768044645446,-1000.0,0.00016863,2]
[401207701,1768044645459,-151.0,0.00016863,2]
[401207702,1768044645471,-181.08010149,0.00016863,2]
[401207703,1768044645484,-151.0,0.00016863,2]
[401207704,1768044645496,-157.48868544,0.00016863,2]
[401207705,1768044645513,-496.47127164,0.00016863,2]
[401207706,1768044645526,-500.0,0.00016863,2]
[401207707,1768044645539,-181.08010149,0.00016863,2]
[401207708,1768044645552,-500.0,0.00016863,2]
[401207709,1768044645564,-500.0,0.00016863,2]
[401207710,1768044645577,-250.0,0.00016863,2]
[401207711,1768044645589,-500.0,0.00016863,2]
[401207712,1768044645602,-250.0,0.00016863,2]
[401207713,1768044645615,-500.0,0.00016863,2]
[401207714,1768044645629,-250.0,0.00016863,2]
[401207715,1768044645641,-500.0,0.00016863,2]
[401207716,1768044645654,-250.0,0.00016863,2]
[401207717,1768044645667,-500.0,0.00016863,2]
[401207718,1768044645681,-250.0,0.00016863,2]
[401207719,1768044645693,-500.0,0.00016863,2]
[401207720,1768044645705,-500.0,0.00016863,2]
[401207721,1768044645716,-250.0,0.00016863,2]
[401207722,1768044645729,-500.0,0.00016863,2]
[401207723,1768044645740,-250.0,0.00016863,2]
[401207724,1768044645756,-500.0,0.00016863,2]
[401207725,1768044645769,-250.0,0.00016863,2]
[401207726,1768044645780,-500.0,0.00016863,2]
[401207727,1768044645792,-250.0,0.00016863,2]
[401207728,1768044645806,-500.0,0.00016863,2]
[401207729,1768044645817,-250.0,0.00016863,2]
[401207730,1768044645829,-250.0,0.00016863,2]
[401207731,1768044645842,-500.0,0.00016863,2]
[401207732,1768044645854,-250.0,0.00016863,2]
[401207733,1768044645866,-500.0,0.00016863,2]
[401207734,1768044645878,-250.0,0.00016863,2]
[401207735,1768044645891,-250.0,0.00016863,2]
[401207736,1768044645903,-500.0,0.00016863,2]
[401207737,1768044645915,-500.0,0.00016863,2]
[401207739,1768044645927,-250.0,0.00016863,2]
[401207742,1768044645942,-250.0,0.00016863,2]
[401207744,1768044645954,-500.0,0.00016863,2]
[401207746,1768044645967,-250.0,0.00016863,2]
[401207747,1768044645980,-500.0,0.00016863,2]
[401207748,1768044645992,-250.0,0.00016863,2]
[401207749,1768044646004,-500.0,0.00016863,2]
[401207751,1768044646017,-500.0,0.00016863,2]
[401207754,1768044646030,-500.0,0.00016863,2]
[401207756,1768044646042,-250.0,0.00016863,2]
[401207758,1768044646055,-250.0,0.00016863,2]
[401207759,1768044646066,-500.0,0.00016863,2]
[401207760,1768044646078,-250.0,0.00016863,2]
[401207761,1768044646091,-500.0,0.00016863,2]
[401207762,1768044646102,-250.0,0.00016863,2]
[401207763,1768044646114,-250.0,0.00016863,2]
[401207764,1768044646127,-500.0,0.00016863,2]
[401207765,1768044646139,-250.0,0.00016863,2]
[401207772,1768044646637,-620.0,0.00016863,2]
[401207773,1768044646685,-250.0,0.00016863,2]
[401207774,1768044646709,-500.0,0.00016863,2]
[401207775,1768044646719,-250.0,0.00016863,2]
[401207776,1768044646729,-250.0,0.00016863,2]
[401207777,1768044646739,-250.0,0.00016863,2]
[401207778,1768044646749,-250.0,0.00016863,2]
[401207779,1768044646758,-500.0,0.00016863,2]
[401207780,1768044646771,-250.0,0.00016863,2]
[401207781,1768044646781,-250.0,0.00016863,2]
[401207782,1768044646792,-500.0,0.00016863,2]
[401207783,1768044646801,-250.0,0.00016863,2]
[401207784,1768044646811,-250.0,0.00016863,2]
[401207785,1768044646821,-250.0,0.00016863,2]
[401207786,1768044646831,-500.0,0.00016863,2]
[401207787,1768044646841,-250.0,0.00016863,2]
[401207788,1768044646852,-250.0,0.00016863,2]
[401207789,1768044646863,-250.0,0.00016863,2]
[401207790,1768044646873,-500.0,0.00016863,2]
[401207791,1768044646882,-250.0,0.00016863,2]
[401207792,1768044646892,-250.0,0.00016863,2]
[401207793,1768044646905,-250.0,0.00016863,2]
[401207794,1768044646914,-250.0,0.00016863,2]
[401207795,1768044646925,-250.0,0.00016863,2]
[401207796,1768044646934,-250.0,0.00016863,2]
[401207797,1768044646944,-390.7048404,0.00016863,2]
[401207798,1768044646954,-250.0,0.00016863,2]
[401207799,1768044646965,-250.0,0.00016863,2]
[401207800,1768044646975,-260.89005731,0.00016863,2]
[401207801,1768044646984,-250.0,0.00016863,2]
[401207802,1768044646994,-187.78006525,0.00016863,2]
[401207803,1768044647004,-250.0,0.00016863,2]
[401207804,1768044647014,-250.0,0.00016863,2]
[401207805,1768044647024,-250.0,0.00016863,2]
[401207806,1768044647034,-288.06928003,0.00016863,2]
[401207807,1768044647043,-250.0,0.00016863,2]
[401207808,1768044647052,-250.0,0.00016863,2]
[401207809,1768044647063,-250.0,0.00016863,2]
[401207810,1768044647073,-623.58710448,0.00016863,2]
[401207811,1768044647083,-250.0,0.00016863,2]
[401207812,1768044647093,-250.0,0.00016863,2]
[401207813,1768044647103,-337.85219148,0.00016863,2]
[401207814,1768044647113,-500.0,0.00016867,2]
[401207815,1768044647123,-150.0,0.0001687,2]
[401207816,1768044647133,-150.0,0.00016871,2]
[401207817,1768044647143,-252.68743637,0.00016873,2]
[401207818,1768044647153,-260.75602621,0.00016873,2]
[401207819,1768044647163,-226.31905987,0.00016873,2]
[401207820,1768044647173,-213.87423394,0.00016873,2]
[401207821,1768044647183,-177.21892515,0.00016873,2]
[401207822,1768044647192,-150.0,0.00016875,2]
[401207823,1768044647202,-150.0,0.00016875,2]
[401207824,1768044647211,-460.0,0.00016876,2]
[401207825,1768044647220,-150.0,0.0001689,2]
[401207826,1768044647230,-252.68743637,0.00016891,2]
[401207827,1768044647240,-260.75602621,0.00016891,2]
[401207828,1768044647251,-226.31905987,0.00016891,2]
[401207829,1768044647261,-213.87423394,0.00016891,2]
[401207830,1768044647271,-177.21892515,0.00016891,2]
[401207831,1768044647281,-150.0,0.00016892,2]
[401207832,1768044647291,-150.0,0.00016906,2]
[401207833,1768044647302,-252.68743637,0.00016909,2]
[401207834,1768044647315,-260.75602621,0.00016909,2]
[401207835,1768044647325,-226.31905987,0.00016909,2]
[401207836,1768044647335,-213.87423394,0.00016909,2]
[401207837,1768044647344,-177.21892515,0.00016909,2]
[401207838,1768044647354,-150.0,0.00016912,2]
[401207839,1768044647363,-8565.75555911,0.00016918,2]
[401207840,1768044647373,-150.0,0.0001692,2]
[401207841,1768044647384,-150.0,0.0001692,2]
[401207842,1768044647394,-150.0,0.0001692,2]
[401207843,1768044647404,-252.68743637,0.00016927,2]
[401207844,1768044647414,-260.75602621,0.00016927,2]
[401207845,1768044647424,-226.31905987,0.00016927,2]
[401207846,1768044647434,-213.87423394,0.00016927,2]
[401207847,1768044647444,-177.21892515,0.00016927,2]
[401207848,1768044647454,-168.28,0.00016927,2]
[401207849,1768044647464,-460.0,0.0001693,2]
[401207850,1768044647474,-150.0,0.00016941,2]
[401207851,1768044647484,-252.68743637,0.00016945,2]
[401207852,1768044647494,-260.75602621,0.00016945,2]
[401207853,1768044647505,-226.31905987,0.00016945,2]
[401207854,1768044647518,-213.87423394,0.00016945,2]
[401207855,1768044647527,-177.21892515,0.00016945,2]
[401207856,1768044647537,-150.0,0.0001695,2]
[401207857,1768044647546,-150.0,0.00016953,2]
[401207858,1768044647557,-150.0,0.00016962,2]
[401207859,1768044647567,-252.68743637,0.00016964,2]
[401207860,1768044647577,-260.75602621,0.00016964,2]
[401207861,1768044647588,-226.31905987,0.00016964,2]
[401207862,1768044647598,-213.87423394,0.00016964,2]
[401207863,1768044647607,-177.21892515,0.00016964,2]
[401207864,1768044647617,-8882.6885148,0.00016973,2]
[401207865,1768044647627,-150.0,0.00016976,2]
[401207866,1768044647636,-150.0,0.0001698,2]
[401207867,1768044647646,-252.68743637,0.00016982,2]
[401207868,1768044647656,-260.75602621,0.00016982,2]
[401207869,1768044647665,-226.31905987,0.00016982,2]
[401207870,1768044647676,-213.87423394,0.00016982,2]
[401207871,1768044647689,-177.21892515,0.00016982,2]
[401207872,1768044647699,-500.0,0.00016985,2]
[401207873,1768044647708,-480.0,0.00016985,2]
[401207874,1768044647719,-1899.44666686,0.00016986,2]
[401207875,1768044647729,-2791.84971627,0.00016986,2]
[401207876,1768044647739,-629.25,0.00016986,2]
[401207877,1768044647749,-600.0,0.00016986,2]
[401207878,1768044647759,-150.0,0.00016995,2]
[401207879,1768044647769,-14734.29972323,0.00016999,2]
[401207880,1768044647779,-252.68743637,0.00017,2]
[401207881,1768044647789,-260.75602621,0.00017,2]
[401207882,1768044647799,-226.31905987,0.00017,2]
[401207883,1768044647808,-213.87423394,0.00017,2]
[401207884,1768044647818,-177.21892515,0.00017,2]
[401207885,1768044647827,-500.0,0.00017,5]
[401207886,1768044647836,-500.0,0.00017,2]
[401207887,1768044647846,-500.0,0.00017,5]
[401207888,1768044647855,-500.0,0.00017,2]
[401207889,1768044647866,-210.20353926,0.00017,2]
[401207890,1768044647875,-150.0,0.0001701,2]
[401207891,1768044647884,-150.0,0.00017012,2]
[401207892,1768044647894,-252.68743637,0.00017018,2]
[401207893,1768044647905,-260.75602621,0.00017018,2]
[401207894,1768044647915,-226.31905987,0.00017018,2]
[401207895,1768044647925,-213.87423394,0.00017018,2]
[401207896,1768044647935,-177.21892515,0.00017018,2]
[401207897,1768044647945,-805.55508344,0.00017028,2]
[401207898,1768044647955,-150.0,0.00017031,2]
[401207899,1768044647965,-2006.10136267,0.00017033,2]
[401207900,1768044647975,-200.0,0.00017033,2]
[401207901,1768044647985,-200.0,0.00017033,2]
[401207902,1768044647994,-252.68743637,0.00017036,2]
[401207903,1768044648005,-260.75602621,0.00017036,2]
[401207904,1768044648015,-226.31905987,0.00017036,2]
[401207905,1768044648026,-213.87423394,0.00017036,2]
[401207906,1768044648035,-177.21892515,0.00017036,2]
[401207907,1768044648045,-150.0,0.00017037,2]
[401207908,1768044648055,-150.0,0.0001704,2]
[401207909,1768044648065,-150.0,0.0001704,2]
[401207910,1768044648074,-150.0,0.00017047,2]
[401207911,1768044648084,-808.48671918,0.00017047,2]
[401207912,1768044648094,-516.91845939,0.00017049,2]
[401207913,1768044648105,-252.68743637,0.00017055,2]
[401207914,1768044648116,-260.75602621,0.00017055,2]
[401207915,1768044648126,-226.31905987,0.00017055,2]
[401207916,1768044648136,-213.87423394,0.00017055,2]
[401207917,1768044648145,-177.21892515,0.00017055,2]
[401207918,1768044648154,-1859.52,0.00017067,2]
[401207919,1768044648164,-150.0,0.0001707,2]
[401207920,1768044648174,-252.68743637,0.00017073,2]
[401207921,1768044648184,-260.75602621,0.00017073,2]
[401207922,1768044648194,-226.31905987,0.00017073,2]
[401207923,1768044648204,-213.87423394,0.00017073,2]
[401207924,1768044648214,-177.21892515,0.00017073,2]
[401207925,1768044648224,-150.0,0.00017079,2]
[401207926,1768044648233,-150.0,0.00017082,2]
[401207927,1768044648244,-252.68743637,0.00017091,2]
[401207928,1768044648253,-260.75602621,0.00017091,2]
[401207929,1768044648264,-226.31905987,0.00017091,2]
[401207930,1768044648274,-213.87423394,0.00017091,2]
[401207931,1768044648285,-177.21892515,0.00017091,2]
[401207932,1768044648295,-150.0,0.000171,2]
[401207933,1768044648306,-150.0,0.000171,2]
[401207934,1768044648322,-150.0,0.000171,2]
[401207935,1768044648332,-150.0,0.000171,2]
[401207936,1768044648342,-150.0,0.000171,2]
[401207937,1768044648352,-150.0,0.000171,2]
[401207938,1768044648361,-1069.8949683,0.000171,2]
[401207939,1768044648371,-252.68743637,0.00017109,2]
[401207940,1768044648381,-260.75602621,0.00017109,2]
[401207941,1768044648390,-226.31905987,0.00017109,2]
[401207942,1768044648399,-213.87423394,0.00017109,2]
[401207943,1768044648409,-177.21892515,0.00017109,2]
[401207944,1768044648419,-150.0,0.00017118,2]
[401207945,1768044648428,-150.0,0.00017121,2]
[401207946,1768044648437,-252.68743637,0.00017127,2]
[401207947,1768044648447,-260.75602621,0.00017127,2]
[401207948,1768044648456,-226.31905987,0.00017127,2]
[401207949,1768044648466,-213.87423394,0.00017127,2]
[401207950,1768044648475,-177.21892515,0.00017127,2]
[401207951,1768044648487,-150.0,0.0001713,2]
[401207952,1768044648496,-500.0,0.00017141,2]
[401207953,1768044648508,-252.68743637,0.00017145,2]
[401207954,1768044648519,-260.75602621,0.00017145,2]
[401207955,1768044648528,-226.31905987,0.00017145,2]
[401207956,1768044648537,-213.87423394,0.00017145,2]
[401207957,1768044648546,-177.21892515,0.00017145,2]
[401207958,1768044648555,-150.0,0.00017153,2]
[401207959,1768044648565,-150.0,0.0001716,2]
[401207960,1768044648575,-150.0,0.0001716,2]
[401207961,1768044648584,-150.0,0.00017163,2]
[401207962,1768044648595,-252.68743637,0.00017164,2]
[401207963,1768044648605,-260.75602621,0.00017164,2]
[401207964,1768044648616,-226.31905987,0.00017164,2]
[401207965,1768044648625,-213.87423394,0.00017164,2]
[401207966,1768044648635,-177.21892515,0.00017164,2]
[401207967,1768044648644,-150.0,0.00017169,2]
[401207968,1768044648654,-200.0,0.00017174,2]
[401207969,1768044648663,-252.68743637,0.00017182,2]
[401207970,1768044648676,-260.75602621,0.00017182,2]
[401207971,1768044648686,-226.31905987,0.00017182,2]
[401207972,1768044648696,-213.87423394,0.00017182,2]
[401207973,1768044648707,-177.21892515,0.00017182,2]
[401207974,1768044648717,-561.2,0.00017183,2]
[401207975,1768044648727,-150.0,0.00017188,2]
[401207976,1768044648737,-150.0,0.0001719,2]
[401207977,1768044648747,-252.68743637,0.000172,2]
[401207978,1768044648757,-260.75602621,0.000172,2]
[401207979,1768044648766,-226.31905987,0.000172,2]
[401207980,1768044648776,-213.87423394,0.000172,2]
[401207981,1768044648786,-177.21892515,0.000172,2]
[401207982,1768044648797,-150.0,0.00017205,2]
[401207983,1768044648807,-252.68743637,0.00017218,2]
[401207984,1768044648818,-260.75602621,0.00017218,2]
[401207985,1768044648827,-226.31905987,0.00017218,2]
[401207986,1768044648837,-213.87423394,0.00017218,2]
[401207987,1768044648847,-177.21892515,0.00017218,2]
[401207988,1768044648857,-150.0,0.0001722,2]
[401207989,1768044648866,-150.0,0.00017224,2]
[401207990,1768044648876,-252.68743637,0.00017236,2]
[401207991,1768044648887,-260.75602621,0.00017236,2]
[401207992,1768044648896,-226.31905987,0.00017236,2]
[401207993,1768044648906,-213.87423394,0.00017236,2]
[401207994,1768044648915,-177.21892515,0.00017236,2]
[401207995,1768044648925,-150.0,0.00017238,2]
[401207996,1768044648935,-150.0,0.00017247,2]
[401207997,1768044648945,-150.0,0.0001725,2]
[401207998,1768044648956,-252.68743637,0.00017255,2]
[401207999,1768044648966,-260.75602621,0.00017255,2]
[401208000,1768044648976,-226.31905987,0.00017255,2]
[401208001,1768044648986,-213.87423394,0.00017255,2]
[401208002,1768044648996,-177.21892515,0.00017255,2]
[401208003,1768044649006,-561.2,0.00017257,2]
[401208004,1768044649016,-150.0,0.00017259,2]
[401208005,1768044649026,-252.68743637,0.00017273,2]
[401208006,1768044649036,-260.75602621,0.00017273,2]
[401208007,1768044649046,-226.31905987,0.00017273,2]
[401208008,1768044649055,-213.87423394,0.00017273,2]
[401208009,1768044649065,-177.21892515,0.00017273,2]
[401208010,1768044649074,-159.16121496,0.00017273,2]
[401208011,1768044649084,-150.0,0.0001728,2]
[401208012,1768044649093,-150.0,0.0001728,2]
[401208013,1768044649103,-150.0,0.0001728,2]
[401208014,1768044649113,-150.0,0.00017288,2]
[401208015,1768044649122,-252.68743637,0.00017291,2]
[401208016,1768044649132,-260.75602621,0.00017291,2]
[401208017,1768044649141,-226.31905987,0.00017291,2]
[401208018,1768044649151,-213.87423394,0.00017291,2]
[401208019,1768044649160,-177.21892515,0.00017291,2]
[401208020,1768044649169,-150.0,0.00017294,2]
[401208021,1768044649179,-14734.29972323,0.000173,2]
[401208022,1768044649188,-632.50628111,0.00017303,2]
[401208023,1768044649198,-150.0,0.00017308,2]
[401208024,1768044649208,-252.68743637,0.00017309,2]
[401208025,1768044649217,-260.75602621,0.00017309,2]
[401208026,1768044649228,-226.31905987,0.00017309,2]
[401208027,1768044649238,-213.87423394,0.00017309,2]
[401208028,1768044649247,-177.21892515,0.00017309,2]
[401208029,1768044649257,-150.0,0.0001731,2]
[401208030,1768044649266,-2006.10136267,0.00017322,2]
[401208031,1768044649276,-150.0,0.00017325,2]
[401208032,1768044649286,-150.0,0.00017325,2]
[401208033,1768044649295,-252.68743637,0.00017327,2]
[401208034,1768044649305,-260.75602621,0.00017327,2]
[401208035,1768044649315,-226.31905987,0.00017327,2]
[401208036,1768044649324,-213.87423394,0.00017327,2]
[401208037,1768044649334,-177.21892515,0.00017327,2]
[401208038,1768044649344,-150.0,0.00017329,2]
[401208039,1768044649354,-150.0,0.0001733,2]
[401208040,1768044649363,-561.2,0.00017332,2]
[401208041,1768044649373,-150.0,0.0001734,2]